bitfinex/quotes_SOLUSD_20250917
["timestamp","ask_amount","ask_price","bid_price","bid_amount"]
[1758130237987,0.03,233.95,233.94,46.1389695]
[1758130238195,0.03,233.95,233.94,47.85096847]
[1758130242896,0.03,234.0,233.95,13.59559401]
[1758130243063,0.03,234.0,233.99,1.54877517]
[1758130243265,0.03,234.0,233.99,34.58877517]
[1758130243493,0.03,234.0,233.99,35.27877517]
[1758130244187,0.73,234.0,233.98,26.0]
[1758130244688,0.03,234.0,233.98,26.0]
[1758130244888,0.03,234.0,233.99,4.2736869]
[1758130246585,0.03,234.0,233.99,5.82246207]
[1758130246764,0.03,234.0,233.99,6.51246207]
[1758130247385,0.03,234.0,233.99,5.82246207]
[1758130247966,0.03,234.0,233.99,4.2736869]
[1758130248590,0.03,234.0,233.99,52.30315676]
[1758130248794,0.03,234.0,233.99,28.01478944]
[1758130249095,0.7,234.11,234.02,26.0]
[1758130249293,0.7,234.11,234.07,1.54877517]
[1758130249509,0.7,234.1,234.07,1.54877517]
[1758130249911,0.7,234.1,234.08,4.27204374]
[1758130250716,5.8197812,234.14,234.08,4.27204374]
[1758130250879,0.7,234.09,234.06,4.27235009]
[1758130251078,0.7,234.08,234.06,4.27235009]
[1758130251488,1.54877517,234.12,234.06,4.27235009]
[1758130251489,0.7,234.07,234.06,4.27235009]
[1758130252010,0.7,234.07,234.05,4.27257334]
[1758130253798,0.7,234.09,234.05,6.6901896]
[1758130254126,0.03,234.1,234.08,2.41761626]
[1758130254498,0.03,234.1,234.09,0.69]
[1758130254714,0.03,234.1,234.09,2.41761626]
[1758130255387,0.03,234.1,234.09,29.10761626]
[1758130255701,0.03,234.1,234.09,16.70321027]
[1758130256016,0.03,234.1,234.09,54.03507151]
[1758130256310,0.03,234.1,234.09,53.33123181]
[1758130256505,0.03,234.1,234.09,40.4994775]
[1758130257702,0.03,234.1,234.09,7.3794775]
[1758130257909,0.03,234.1,234.09,40.5194775]
[1758130258484,0.03,234.1,234.09,33.3794775]
[1758130258691,0.03,234.1,234.09,40.5194775]
[1758130259703,0.03,234.1,234.09,38.08186124]
[1758130259898,0.03,234.1,234.09,4.27186124]
[1758130261924,0.03,234.1,234.08,4.27204374]
[1758130263820,0.03,234.1,234.08,4.92204374]
[1758130264614,0.03,234.1,234.09,3.06761626]
[1758130264823,0.03,234.1,234.09,16.66321027]
[1758130265029,0.03,234.1,234.09,45.08082653]
[1758130265207,0.03,234.1,234.09,19.08082653]
[1758130266124,0.03,234.1,234.09,49.35268777]
[1758130266635,0.03,234.1,234.09,56.47268777]
[1758130267299,0.7,234.23,234.17,26.0]
[1758130267500,0.7,234.23,234.19,2.41761626]
[1758130268310,0.7,234.23,234.2,14.94449188]
[1758130268517,0.7,234.26,234.21,0.65]
[1758130268725,0.7,234.25,234.21,0.65]
[1758130269026,2.41761626,234.28,234.2,17.36210814]
[1758130269221,0.7,234.27,234.21,33.77]
[1758130270611,0.7,234.27,234.22,14.94321577]
[1758130271122,3.11761626,234.3,234.23,0.65]
[1758130271517,0.7,234.3,234.22,17.36083203]
[1758130271728,0.7,234.29,234.22,17.36083203]
[1758130272029,0.7,234.28,234.22,17.36083203]
[1758130272220,0.7,234.29,234.22,14.94321577]
[1758130272420,3.11761626,234.28,234.23,26.0]
[1758130272618,0.7,234.27,234.24,4.26912568]
[1758130273304,0.7,234.26,234.2,33.12]
[1758130273498,3.11761626,234.26,234.2,37.38985482]
[1758130274316,3.11761626,234.26,234.2,48.06449188]
[1758130274707,0.7,234.26,234.21,0.65]
[1758130276229,0.7,234.26,234.22,4.26949022]
[1758130280752,0.7,234.26,234.22,4.91949022]
[1758130281922,2.41761626,234.27,234.22,4.91949022]
[1758130282148,3.11761626,234.27,234.22,4.91949022]
[1758130283551,0.7,234.26,234.22,4.91949022]
[1758130283932,3.14761626,234.28,234.22,4.91949022]
[1758130286463,2.44761626,234.28,234.22,14.94321577]
[1758130286628,0.03,234.28,234.24,2.41761626]
[1758130286829,0.03,234.28,234.25,0.65]
[1758130287262,0.03,234.28,234.26,7.33637746]
[1758130287731,0.03,234.28,234.27,0.65]
[1758130288357,0.03,234.28,234.27,4.91857899]
[1758130289755,0.03,234.28,234.27,4.26857899]
[1758130290157,0.03,234.28,234.27,17.864173]
[1758130290332,0.03,234.28,234.27,20.93178926]
[1758130292854,0.03,234.28,234.27,30.91857899]
[1758130293061,0.03,234.28,234.27,33.33619525]
[1758130302040,0.03,234.28,234.27,30.26857899]
[1758130302248,0.03,234.28,234.27,32.68619525]
[1758130302870,0.03,234.28,234.27,4.26857899]
[1758130303046,0.73,234.28,234.27,4.26857899]
[1758130303363,0.73,234.28,234.25,4.26878622]
[1758130303666,0.7,234.27,234.25,4.26878622]
[1758130303868,0.7,234.26,234.25,4.26878622]
[1758130304479,0.7,234.26,234.24,10.67264055]
[1758130304763,0.03,234.28,234.23,4.26930794]
[1758130304764,0.7,234.25,234.23,4.26930794]
[1758130304966,0.73,234.28,234.23,17.36019406]
[1758130305151,0.73,234.28,234.25,2.41761626]
[1758130305152,0.03,234.28,234.25,2.41761626]
[1758130305354,0.03,234.28,234.27,2.41761626]
[1758130306052,0.03,234.28,234.27,6.68619525]
[1758130306482,0.03,234.28,234.27,7.36619525]
[1758130313974,0.03,234.28,234.27,6.49268995]
[1758130314662,0.03,234.28,234.27,4.94857899]
[1758130314863,0.03,234.28,234.27,6.49268995]
[1758130315377,0.03,234.28,234.27,5.81268995]
[1758130316171,0.03,234.28,234.27,6.49268995]
[1758130317168,0.03,234.28,234.27,5.81268995]
[1758130317759,0.03,234.28,234.27,6.53268995]
[1758130318158,0.03,234.28,234.27,5.81268995]
[1758130318568,0.03,234.28,234.27,6.53268995]
[1758130318951,0.03,234.28,234.27,4.26857899]
[1758130319155,0.7,234.28,234.27,4.26857899]
[1758130320256,0.7,234.28,234.25,10.67222777]
[1758130320479,0.03,234.28,234.25,10.67222777]
[1758130320790,0.7,234.28,234.25,10.67222777]
[1758130321664,0.03,234.28,234.27,26.0]
[1758130322181,0.03,234.28,234.27,26.72]
[1758130322347,0.03,234.28,234.27,30.98857899]
[1758130322971,0.03,234.28,234.27,44.584173]
[1758130323565,0.03,234.28,234.27,31.81268995]
[1758130323864,0.03,234.28,234.27,32.47268995]
[1758130325274,0.03,234.28,234.27,4.26857899]
[1758130325275,0.71,234.28,234.27,4.26857899]
[1758130325646,0.03,234.28,234.27,4.26857899]
[1758130326463,0.71,234.28,234.25,14.9411712]
[1758130326779,0.03,234.28,234.27,1.54411096]
[1758130327077,0.03,234.28,234.27,27.54411096]
[1758130327654,0.03,234.28,234.27,28.20411096]
[1758130327878,0.03,234.28,234.27,27.54411096]
[1758130328053,0.03,234.28,234.27,28.20411096]
[1758130329368,0.03,234.28,234.27,32.47268995]
[1758130330681,0.71,234.28,234.27,30.26857899]
[1758130330980,0.03,234.28,234.27,30.26857899]
[1758130332692,0.03,234.28,234.27,30.92857899]
[1758130333169,0.03,234.28,234.27,31.81268995]
[1758130334052,0.71,234.28,234.27,30.26857899]
[1758130334258,0.71,234.28,234.27,4.26857899]
[1758130334664,0.71,234.28,234.25,10.67222777]
[1758130335081,0.68,234.27,234.25,10.67222777]
[1758130336381,0.68,234.26,234.25,10.67222777]
[1758130336885,0.71,234.28,234.25,10.67222777]
[1758130337056,0.68,234.27,234.25,10.67222777]
[1758130337559,0.68,234.26,234.25,10.67222777]
[1758130337776,0.71,234.28,234.25,10.67222777]
[1758130338558,0.68,234.27,234.25,10.67222777]
[1758130338771,0.68,234.27,234.25,14.9411712]
[1758130338967,0.68,234.26,234.25,4.26894343]
[1758130339281,0.68,234.26,234.2,22.00894728]
[1758130339282,0.68,234.26,234.16,14.94704474]
[1758130339584,2.22411096,234.25,234.19,26.0]
[1758130339887,2.22411096,234.25,234.16,14.94704474]
[1758130339888,0.68,234.24,234.18,1.54411096]
[1758130340055,0.68,234.24,234.16,17.1511557]
[1758130340056,0.68,234.23,234.16,17.1511557]
[1758130340252,2.22411096,234.22,234.16,14.94704474]
[1758130340456,0.68,234.22,234.16,16.4911557]
[1758130341083,0.68,234.21,234.16,16.4911557]
[1758130341284,1.54411096,234.24,234.16,17.1511557]
[1758130341486,0.68,234.21,234.17,1.54411096]
[1758130341683,0.68,234.25,234.19,1.54411096]
[1758130342565,1.54411096,234.26,234.19,1.54411096]
[1758130342769,2.22411096,234.25,234.19,4.27003714]
[1758130342981,0.68,234.24,234.19,4.27003714]
[1758130343175,0.68,234.23,234.19,4.27003714]
[1758130343486,0.68,234.22,234.19,4.27003714]
[1758130343792,2.22411096,234.21,234.19,4.27003714]
[1758130344084,0.68,234.2,234.19,4.27003714]
[1758130344886,0.68,234.22,234.16,16.4911557]
[1758130345061,33.0,234.25,234.21,1.54411096]
[1758130345265,0.03,234.28,234.24,1.54411096]
[1758130345767,0.71,234.28,234.24,1.54411096]
[1758130345989,0.68,234.27,234.23,1.54411096]
[1758130346291,0.03,234.28,234.23,2.20411096]
[1758130346470,0.71,234.28,234.23,2.20411096]
[1758130346788,0.71,234.28,234.24,4.26912568]
[1758130346789,0.68,234.27,234.24,4.26912568]
[1758130347192,0.03,234.28,234.24,4.26912568]
[1758130347193,0.68,234.26,234.24,4.26912568]
[1758130347990,0.68,234.25,234.22,4.26935099]
[1758130348193,0.68,234.24,234.22,4.26935099]
[1758130348784,0.68,234.24,234.21,4.26967251]
[1758130349095,0.68,234.23,234.21,4.26967251]
[1758130349401,0.68,234.22,234.21,4.26967251]
[1758130349561,1.54411096,234.26,234.21,4.26967251]
[1758130349764,0.68,234.24,234.21,4.26967251]
[1758130350397,0.68,234.24,234.2,4.26985482]
[1758130350774,0.68,234.24,234.2,14.94449188]
[1758130351492,35.24411096,234.26,234.2,15.60449188]
[1758130351687,0.68,234.24,234.2,14.94449188]
[1758130352580,1.54411096,234.26,234.2,15.60449188]
[1758130352889,2.22411096,234.26,234.2,15.60449188]
[1758130353289,0.68,234.25,234.2,14.94449188]
[1758130353591,0.68,234.24,234.2,14.94449188]
[1758130353897,1.54411096,234.25,234.2,14.94449188]
[1758130353898,1.54411096,234.25,234.2,15.65449188]
[1758130354194,2.22411096,234.25,234.2,15.65449188]
[1758130354570,33.68,234.25,234.2,15.65449188]
[1758130355678,0.03,234.28,234.24,1.54411096]
[1758130355891,0.03,234.28,234.27,1.54411096]
[1758130356279,0.03,234.28,234.27,2.25411096]
[1758130357683,0.03,234.28,234.27,34.23249353]
[1758130364377,0.03,234.28,234.27,47.82808754]
[1758130364797,0.03,234.33,234.28,13.59559401]
[1758130364986,0.03,234.33,234.32,1.54411096]
[1758130365301,0.03,234.33,234.28,0.71]
[1758130365503,0.03,234.31,234.28,3.25376838]
[1758130365893,0.03,234.31,234.29,4.2682146]
[1758130367478,0.03,234.31,234.29,6.52232556]
[1758130368375,0.03,234.31,234.29,4.2682146]
[1758130368580,0.03,234.31,234.29,5.81232556]
[1758130368988,0.71,234.31,234.29,4.2682146]
[1758130369316,0.71,234.31,234.29,5.81232556]
[1758130369610,0.03,234.31,234.29,4.2682146]
[1758130370404,0.71,234.31,234.29,4.2682146]
[1758130370877,0.03,234.31,234.29,4.2682146]
[1758130371083,0.71,234.31,234.29,4.2682146]
[1758130371311,0.71,234.31,234.28,4.26839679]
[1758130372494,0.03,234.31,234.28,4.26839679]
[1758130372690,0.71,234.31,234.28,4.26839679]
[1758130373018,0.03,234.31,234.28,4.26839679]
[1758130373193,0.71,234.31,234.28,4.26839679]
[1758130373882,0.03,234.31,234.27,14.94002646]
[1758130374086,0.68,234.3,234.27,14.94002646]
[1758130375090,0.03,234.31,234.27,14.94002646]
[1758130375310,0.71,234.31,234.27,14.94002646]
[1758130375999,0.71,234.31,234.27,18.06310688]
[1758130376387,0.71,234.31,234.27,15.65002646]
[1758130377009,0.03,234.31,234.27,15.65002646]
[1758130377198,0.03,234.31,234.27,18.06310688]
[1758130377398,0.03,234.31,234.27,15.65002646]
[1758130377593,0.03,234.31,234.28,3.07308042]
[1758130377992,0.03,234.31,234.29,0.66]
[1758130378916,0.03,234.31,234.29,3.07308042]
[1758130379118,0.03,234.31,234.3,29.07308042]
[1758130379613,0.03,234.31,234.3,33.34111285]
[1758130381312,0.03,234.31,234.3,32.68111285]
[1758130381512,0.03,234.31,234.3,33.34111285]
[1758130382295,0.03,234.31,234.3,46.93670686]
[1758130383327,0.03,234.31,234.3,57.34386533]
[1758130383522,0.03,234.31,234.3,59.75694575]
[1758130384228,0.03,234.31,234.3,57.34386533]
[1758130384532,0.03,234.31,234.3,59.75694575]
[1758130392441,0.03,234.31,234.3,92.71694575]
[1758130395016,0.03,234.34,234.3,92.71694575]
[1758130395017,0.03,234.34,234.33,39.59559401]
[1758130395223,0.03,234.34,234.33,74.96867443]
[1758130395441,0.03,234.34,234.33,75.62867443]
[1758130395937,0.03,234.34,234.33,79.89616045]
[1758130396136,0.03,234.34,234.33,81.60523349]
[1758130396342,0.03,234.34,234.33,79.19215307]
[1758130396541,0.03,234.34,234.33,81.60523349]
[1758130397045,0.03,234.34,234.33,34.38963948]
[1758130397341,0.03,234.34,234.33,67.34963948]
[1758130398129,0.03,234.34,234.33,68.00963948]
[1758130400820,0.72,234.42,234.33,100.44253324]
[1758130401140,48.64461344,234.49,234.41,2.41308042]
[1758130401443,45.77308042,234.49,234.41,2.41308042]
[1758130401825,0.72,234.48,234.41,2.41308042]
[1758130402019,0.72,234.48,234.37,26.0]
[1758130402020,0.72,234.47,234.44,4.2654837]
[1758130402321,0.72,234.46,234.42,2.41308042]
[1758130402536,0.72,234.45,234.42,2.41308042]
[1758130402746,0.72,234.44,234.42,2.41308042]
[1758130402935,35.37308042,234.5,234.42,2.41308042]
[1758130402936,0.72,234.43,234.42,2.41308042]
[1758130403834,0.72,234.43,234.42,6.67892804]
[1758130406150,2.41308042,234.49,234.42,4.26584762]
[1758130406446,0.72,234.48,234.42,2.41308042]
[1758130406649,58.96,234.49,234.42,2.41308042]
[1758130406650,0.72,234.47,234.42,2.41308042]
[1758130406824,0.72,234.46,234.42,2.41308042]
[1758130407334,0.72,234.46,234.44,2.41308042]
[1758130408436,0.72,234.46,234.45,4.26530177]
[1758130410727,0.72,234.48,234.45,4.26530177]
[1758130411047,0.72,234.48,234.46,2.41308042]
[1758130411532,0.72,234.47,234.46,2.41308042]
[1758130411733,0.72,234.47,234.45,14.92855619]
[1758130411938,0.72,234.46,234.45,14.92855619]
[1758130412849,0.72,234.48,234.45,14.92855619]
[1758130413036,0.72,234.5,234.45,14.92855619]
[1758130413233,0.72,234.49,234.45,14.92855619]
[1758130413425,0.72,234.48,234.45,17.34163661]
[1758130413623,32.96,234.51,234.45,17.34163661]
[1758130413841,0.72,234.48,234.45,17.34163661]
[1758130414239,0.69,234.47,234.45,17.34163661]
[1758130414757,0.69,234.47,234.45,4.26530177]
[1758130417028,0.69,234.46,234.45,4.26530177]
[1758130417228,32.94,234.49,234.45,4.26530177]
[1758130417459,0.69,234.48,234.45,4.26530177]
[1758130417635,0.69,234.47,234.45,4.26530177]
[1758130417834,32.94,234.49,234.45,4.26530177]
[1758130418049,0.69,234.46,234.45,4.26530177]
[1758130418642,32.94,234.49,234.45,4.26530177]
[1758130418843,0.69,234.48,234.45,4.26530177]
[1758130419044,0.69,234.47,234.45,4.26530177]
[1758130419635,0.69,234.47,234.44,4.2654837]
[1758130421167,0.69,234.46,234.44,4.2654837]
[1758130421365,0.03,234.47,234.44,4.2654837]
[1758130421534,0.72,234.47,234.44,4.2654837]
[1758130422067,0.72,234.47,234.44,6.67856412]
[1758130422563,0.03,234.47,234.44,7.35856412]
[1758130424265,0.03,234.47,234.44,6.67856412]
[1758130424572,0.03,234.47,234.44,7.35856412]
[1758130425061,0.72,234.47,234.44,4.2654837]
[1758130425275,0.03,234.47,234.44,7.35856412]
[1758130427559,0.03,234.47,234.44,4.9454837]
[1758130427960,0.03,234.47,234.44,7.35856412]
[1758130430080,0.72,234.47,234.44,0.68]
[1758130430658,0.03,234.47,234.43,19.49399015]
[1758130430845,0.03,234.47,234.45,0.68]
[1758130431049,0.03,234.47,234.44,2.41308042]
[1758130431266,0.03,234.47,234.44,3.09308042]
[1758130431677,0.03,234.47,234.44,2.41308042]
[1758130431879,0.03,234.47,234.45,0.68]
[1758130432177,0.03,234.47,234.46,4.26511984]
[1758130432954,0.03,234.47,234.46,4.94511984]
[1758130434683,0.03,234.47,234.46,4.26511984]
[1758130435883,0.03,234.47,234.45,4.26530177]
[1758130436063,0.03,234.47,234.45,4.94530177]
[1758130436586,0.03,234.47,234.45,4.26530177]
[1758130437159,0.03,234.47,234.45,4.95530177]
[1758130438292,0.03,234.47,234.45,4.26530177]
[1758130438982,0.03,234.47,234.45,4.95530177]
[1758130439664,0.03,234.47,234.45,4.26530177]
[1758130440785,0.66,234.46,234.45,4.26530177]
[1758130441161,0.66,234.46,234.41,12.81585748]
[1758130441162,2.20205305,234.46,234.41,12.81585748]
[1758130441379,1.54205305,234.44,234.38,0.69]
[1758130441579,33.6,234.43,234.38,0.69]
[1758130441779,0.66,234.42,234.38,0.69]
[1758130441968,32.94,234.43,234.39,0.69]
[1758130442167,33.6,234.43,234.39,0.69]
[1758130442585,0.66,234.42,234.37,14.93365191]
[1758130442782,2.20205305,234.41,234.37,4.26675769]
[1758130443160,2.20205305,234.41,234.37,4.95675769]
[1758130443367,1.54205305,234.41,234.37,4.95675769]
[1758130443566,2.20205305,234.42,234.37,4.26675769]
[1758130443783,32.94,234.41,234.38,0.69]
[1758130443987,2.20205305,234.42,234.39,4.26639361]
[1758130444178,4.2653028,234.45,234.39,4.92639361]
[1758130444179,32.94,234.41,234.39,4.92639361]
[1758130444589,4.2653028,234.45,234.39,4.92639361]
[1758130444590,1.54205305,234.45,234.4,0.66]
[1758130444894,12.54642098,234.59,234.41,0.66]
[1758130444895,3.58911896,234.55,234.41,0.66]
[1758130445083,32.94,234.48,234.44,1.54205305]
[1758130445925,32.94,234.48,234.44,0.66]
[1758130446203,32.94,234.48,234.45,4.26530177]
[1758130446806,32.94,234.48,234.45,4.92530177]
[1758130446974,32.94,234.48,234.45,4.26530177]
[1758130447175,32.94,234.48,234.46,4.92511984]
[1758130447398,1.54205305,234.5,234.46,4.92511984]
[1758130447567,0.7,234.51,234.46,4.92511984]
[1758130447770,32.94,234.48,234.46,4.26511984]
[1758130448295,0.7,234.54,234.46,6.46717289]
[1758130448596,32.94,234.52,234.46,6.46717289]
[1758130448783,1.54205305,234.57,234.46,8.17588089]
[1758130448985,32.94,234.54,234.46,8.17588089]
[1758130449801,32.94,234.56,234.46,21.7714749]
[1758130450179,32.94,234.57,234.46,21.7714749]
[1758130450399,0.7,234.59,234.46,21.7714749]
[1758130450580,2.66,234.58,234.46,21.7714749]
[1758130450774,2.66,234.58,234.46,22.19798688]
[1758130450974,12.6,234.59,234.49,26.0]
[1758130451173,0.7,234.62,234.58,1.54205305]
[1758130451370,0.7,234.61,234.58,4.26277764]
[1758130451994,57.1,234.63,234.58,4.26277764]
[1758130452196,0.7,234.62,234.57,4.26311712]
[1758130452404,58.64205305,234.63,234.54,5.80571809]
[1758130452405,2.24205305,234.61,234.54,5.80571809]
[1758130452591,0.7,234.6,234.54,5.80571809]
[1758130452792,1.54205305,234.58,234.53,12.80874411]
[1758130453111,2.24205305,234.57,234.52,4.26384856]
[1758130453314,61.36203339,234.63,234.52,4.26384856]
[1758130453315,0.7,234.56,234.52,4.92384856]
[1758130453611,0.7,234.58,234.53,0.66]
[1758130453784,0.7,234.58,234.54,0.66]
[1758130453984,0.7,234.58,234.52,5.80590161]
[1758130454224,0.7,234.58,234.52,6.46590161]
[1758130457411,0.7,234.58,234.5,4.26421236]
[1758130457412,1.54205305,234.55,234.5,4.26421236]
[1758130457712,2.24205305,234.54,234.49,0.66]
[1758130458421,2.24205305,234.54,234.49,4.26456823]
[1758130458586,0.7,234.54,234.5,0.66]
[1758130460014,32.92,234.55,234.49,5.80662128]
[1758130460322,32.92,234.55,234.51,0.66]
[1758130460508,2.24205305,234.57,234.52,0.66]
[1758130460704,32.95,234.58,234.53,0.66]
[1758130461017,0.03,234.58,234.53,2.20205305]
[1758130461221,0.03,234.58,234.56,1.54205305]
[1758130461522,0.03,234.58,234.57,1.54205305]
[1758130461899,0.03,234.58,234.57,2.20205305]
[1758130462099,0.03,234.58,234.57,15.0102503]
[1758130462320,0.03,234.58,234.57,19.27337005]
[1758130463198,0.03,234.58,234.57,17.731317]
[1758130464328,0.03,234.58,234.57,31.32691101]
[1758130466612,0.03,234.58,234.57,19.27337005]
[1758130467197,0.03,234.58,234.57,17.731317]
[1758130467404,0.03,234.58,234.57,19.27337005]
[1758130470127,0.03,234.58,234.57,32.86896406]
[1758130472114,0.03,234.58,234.57,65.76896406]
[1758130472425,5.80265094,234.71,234.62,13.59559401]
[1758130472426,0.7,234.71,234.62,13.59559401]
[1758130472638,0.7,234.71,234.69,1.54205305]
[1758130473213,0.7,234.71,234.69,5.80159841]
[1758130473617,0.7,234.73,234.7,1.54205305]
[1758130473826,0.7,234.73,234.69,4.25954536]
[1758130473827,0.7,234.75,234.72,1.54205305]
[1758130474033,0.7,234.75,234.73,1.54205305]
[1758130474412,0.7,234.74,234.72,1.54205305]
[1758130474619,0.7,234.76,234.73,4.26021386]
[1758130474816,0.7,234.75,234.73,4.26021386]
[1758130475123,0.7,234.74,234.73,4.26021386]
[1758130475902,0.7,234.74,234.72,1.54205305]
[1758130476103,0.7,234.74,234.72,5.8024232]
[1758130478019,0.7,234.73,234.65,33.59]
[1758130478209,1.54205305,234.75,234.65,33.59]
[1758130478210,2.24205305,234.72,234.65,0.69]
[1758130478412,2.24205305,234.72,234.64,4.26184793]
[1758130478413,1.54205305,234.7,234.64,4.26184793]
[1758130478627,0.7,234.69,234.64,4.26184793]
[1758130478825,1.54205305,234.67,234.64,10.65627372]
[1758130479142,1.54205305,234.67,234.58,0.69]
[1758130479143,2.24205305,234.66,234.6,4.26242548]
[1758130479322,0.7,234.65,234.61,10.65627372]
[1758130479513,0.7,234.64,234.6,30.26242548]
[1758130479711,1.54205305,234.66,234.6,14.9186992]
[1758130479712,0.7,234.63,234.6,14.9186992]
[1758130479909,0.7,234.62,234.6,4.26242548]
[1758130480323,0.7,234.64,234.6,4.26242548]
[1758130481317,1.54205305,234.61,234.57,0.06]
[1758130481739,2.24205305,234.6,234.57,0.06]
[1758130482126,0.7,234.63,234.57,2.29205305]
[1758130482313,0.7,234.66,234.62,1.54205305]
[1758130482514,0.7,234.65,234.62,1.54205305]
[1758130483518,0.7,234.65,234.61,5.80434498]
[1758130483717,0.7,234.64,234.61,1.54205305]
[1758130483920,0.7,234.64,234.6,1.54205305]
[1758130485044,0.7,234.64,234.61,4.2623929]
[1758130485848,0.7,234.64,234.6,1.54205305]
[1758130486020,2.24205305,234.63,234.57,4.32302058]
[1758130486342,0.7,234.62,234.57,4.32302058]
[1758130486636,0.7,234.61,234.57,4.32302058]
[1758130486847,0.7,234.63,234.57,6.55507363]
[1758130487445,0.7,234.66,234.6,1.54205305]
[1758130487663,33.62,234.66,234.6,1.54205305]
[1758130487829,0.7,234.66,234.6,1.54205305]
[1758130488030,33.62,234.68,234.62,1.54205305]
[1758130488533,0.7,234.67,234.62,1.54205305]
[1758130488757,0.7,234.66,234.62,1.54205305]
[1758130489052,0.7,234.65,234.6,2.23205305]
[1758130489229,0.7,234.65,234.61,1.54205305]
[1758130489544,0.7,234.65,234.62,4.26221123]
[1758130489846,1.54205305,234.67,234.6,6.49447584]
[1758130490144,0.7,234.64,234.6,5.80447584]
[1758130490638,0.7,234.64,234.6,4.26242279]
[1758130491035,0.7,234.63,234.58,5.80447584]
[1758130491232,2.24205305,234.62,234.57,0.06]
[1758130491640,1.54205305,234.58,234.57,0.06]
[1758130492019,2.24205305,234.58,234.57,0.06]
[1758130492644,0.7,234.58,234.57,0.06]
[1758130493829,2.24205305,234.58,234.57,0.06]
[1758130494626,6.50499106,234.58,234.57,0.06]
[1758130495730,33.37211641,234.58,234.57,0.06]
[1758130496235,66.31211641,234.58,234.57,0.06]
[1758130496626,3.1091784,234.58,234.57,0.06]
[1758130497032,33.64,234.58,234.57,0.06]
[1758130497440,40.31211641,234.58,234.57,0.06]
[1758130498440,53.90771042,234.58,234.57,0.06]
[1758130500973,3.1091784,234.58,234.57,0.06]
[1758130501141,32.96,234.58,234.57,0.06]
[1758130501463,37.92293801,234.58,234.57,0.06]
[1758130501660,40.33211641,234.58,234.57,0.06]
[1758130501957,36.0691784,234.58,234.57,0.06]
[1758130502255,32.96,234.58,234.57,0.06]
[1758130503132,39.63211641,234.58,234.57,0.06]
[1758130503444,39.63211641,234.58,234.57,0.76]
[1758130503445,32.96,234.58,234.57,0.76]
[1758130503752,0.03,234.63,234.57,7.43229137]
[1758130503952,0.03,234.63,234.59,2.4091784]
[1758130504136,32.98,234.62,234.59,2.4091784]
[1758130504344,0.03,234.63,234.6,3.0691784]
[1758130504872,0.03,234.63,234.61,0.66]
[1758130505260,0.03,234.63,234.62,0.66]
[1758130506678,0.03,234.63,234.62,4.92221123]
[1758130506890,0.03,234.63,234.62,10.66737432]
[1758130507976,0.03,234.63,234.62,23.47174488]
[1758130508280,0.03,234.63,234.62,10.66737432]
[1758130509648,0.03,234.63,234.62,0.66]
[1758130509865,0.03,234.63,234.61,4.26233271]
[1758130510074,0.03,234.63,234.62,0.66]
[1758130510989,0.03,234.63,234.62,10.66737432]
[1758130519594,0.03,234.63,234.62,10.00737432]
[1758130519883,0.03,234.63,234.62,10.66737432]
[1758130520449,0.03,234.63,234.61,4.26238531]
[1758130520997,0.03,234.63,234.59,10.00791416]
[1758130520998,0.71,234.63,234.59,10.00791416]
[1758130521153,0.03,234.63,234.62,5.74516309]
[1758130521353,0.03,234.63,234.62,6.40516309]
[1758130522462,0.03,234.63,234.62,10.66737432]
[1758130523377,0.03,234.63,234.62,24.26296833]